fUST/lending_fUST_20260205
["ID","MTS","AMOUNT","RATE_DAILY","PERIOD"]
[404526614,1770244135614,-363.0,0.00025999,2]
[404526615,1770244135643,-500.0,0.00025999,2]
[404526616,1770244135672,-517.74661585,0.00025999,2]
[404526617,1770244135700,-231.41589502,0.00025999,2]
[404526618,1770244135727,-12916.0,0.00026,2]
[404526619,1770244135756,-8378.3864133,0.00026,2]
[404526620,1770244135783,-1165226.0393434,0.00026,2]
[404526622,1770244148036,-100000.0,0.0002599,2]
[404526623,1770244148069,-421439.09669773,0.00026,2]
[404526624,1770244148102,-286.54757006,0.00026214,12]
[404526625,1770244148136,-8331.65054876,0.00026401,2]
[404526626,1770244148169,-190.35700944,0.00026515,2]
[404526627,1770244148202,-741.08018794,0.00026516,2]
[404526628,1770244148237,-157.85,0.000268,2]
[404526629,1770244148271,-741.08018794,0.00028,3]
[404526630,1770244148307,-741.08018794,0.00028,7]
[404526631,1770244148343,-741.08018794,0.00028,3]
[404526632,1770244148379,-741.08018794,0.00028,7]
[404526633,1770244148415,-741.08018794,0.00028,3]
[404526634,1770244148448,-2277.20531344,0.0003,7]
[404526635,1770244153027,7353.98204541,0.000259,2]
[404526709,1770244237775,-1104.170928,0.00026849,2]
[404526721,1770244240118,-350.82856513,0.00026849,2]
[404526734,1770244244130,-7030.03183936,0.00026849,2]
[404526735,1770244244139,-3064.99052553,0.0003278,2]
[404526760,1770245431742,-1855.39704448,0.00021917,2]
[404526762,1770245431752,-250.0,0.00021918,45]
[404526764,1770245431761,-741.08018794,0.00026508,2]
[404526766,1770245431770,-250.0,0.00027945,56]
[404526767,1770245431779,-552.085464,0.00029682,2]
[404526769,1770245431788,-207.0,0.00032699,2]
[404526771,1770245431798,-303.490655,0.00032699,2]
[404526772,1770245431807,-319.14346549,0.00032699,2]
[404526773,1770245431816,-500.0,0.00032699,2]
[404526774,1770245431825,-500.0,0.00032699,2]
[404526775,1770245431834,-500.0,0.00032699,2]
[404526776,1770245431844,-500.0,0.00032699,2]
[404526777,1770245431853,-500.0,0.00032699,2]
[404526778,1770245431863,-500.0,0.00032699,2]
[404526780,1770245431872,-500.0,0.00032699,2]
[404526781,1770245431881,-72.43578493,0.00032699,2]
[404526784,1770245431893,-364.935,0.00032699,2]
[404526840,1770246335142,-250.0,0.00021918,45]
[404526841,1770246335162,-741.08018794,0.00026629,2]
[404526842,1770246335186,-6256.21667686,0.00026647,2]
[404526843,1770246335205,-768.5208145,0.00029322,2]
[404526844,1770246335226,-500.0,0.00029342,2]
[404526845,1770246335248,-500.0,0.00029342,2]
[404526846,1770246335269,-553.7102968,0.00029342,2]
[404526847,1770246335289,-500.0,0.00029342,2]
[404526848,1770246335312,-500.0,0.00029342,2]
[404526849,1770246335333,-500.0,0.00029342,2]
[404526850,1770246335353,-500.0,0.00029342,2]
[404526851,1770246335376,-500.0,0.00029342,2]
[404526852,1770246335395,-5148.3267449,0.00029343,2]
[404526859,1770246430103,-6136.20848157,0.00026849,2]
[404526860,1770246430123,-6434.73428976,0.00029287,2]
[404526861,1770246430143,-40190.8223398,0.00029343,2]
[404526862,1770246430164,-516.0262602,0.00029387,3]
[404526863,1770246430183,-1000.0,0.0002989,30]
[404526864,1770246430204,-250.0,0.00031963,63]
[404526865,1770246430224,-182.16,0.00032534,32]
[404526866,1770246430244,-30328.46290167,0.000328,3]
[404526867,1770246430270,-2699.61196123,0.000328,3]
[404526868,1770246430290,-741.08018794,0.000328,3]
[404526869,1770246430310,-1558.9,0.00035,5]
[404526870,1770246430329,-212.86130882,0.00038348,10]
[404526871,1770246430350,-150.671,0.00038367,2]
[404526872,1770246430368,-150.547,0.00038367,2]
[404526873,1770246430388,-3492.84,0.00039428,10]
[404526874,1770246430407,-3492.84,0.00039438,10]
[404526875,1770246430427,-3492.84,0.00039438,10]
[404526876,1770246430446,-3492.84,0.00039438,10]
[404526877,1770246430467,-156.36,0.000395,30]
[404526878,1770246430488,-157.71,0.000395,7]
[404526879,1770246430509,-200.51,0.00039502,2]
[404526880,1770246430530,-150.0,0.00041367,2]
[404526881,1770246430552,-150.0,0.00041367,2]
[404526882,1770246430571,-250.0,0.00042009,81]
[404526883,1770246430594,-179.0,0.00042502,2]
[404526884,1770246430620,-6136.20848157,0.00043165,2]
[404526885,1770246430640,-552.085464,0.00044523,2]
[404526886,1770246430662,-179.0,0.00045502,2]
[404526887,1770246430682,-49996.79,0.000499,120]
[404526888,1770246430703,-150.0,0.00051,85]
[404526889,1770246430725,-240.86,0.00052055,100]
[404526890,1770246430748,-323.44419312,0.00052317,2]
[404526891,1770246430771,-17013.75522449,0.0005234,7]
[404526892,1770246430792,-741.08018794,0.0005234,7]
[404526893,1770246430811,-426.20550017,0.000526,120]
[404526894,1770246430830,-600.0,0.00052619,120]
[404526895,1770246430856,-166.0,0.00053,120]
[404526896,1770246430874,-600.0,0.0005315,120]
[404526897,1770246430893,-600.0,0.0005315,120]
[404526898,1770246430913,-160.0,0.00053438,3]
[404526899,1770246430933,-157.71,0.000535,14]
[404526900,1770246430953,-305.9668812,0.00053978,30]
[404526901,1770246430973,-305.8912739,0.00053978,30]
[404526902,1770246430994,-2500.0,0.000545,5]
[404526903,1770246431015,-711.0,0.00054594,31]
[404526904,1770246431036,-500.0,0.00054794,120]
[404526905,1770246431056,-1836.34,0.00054794,2]
[404526906,1770246431076,-500.0,0.00054794,120]
[404526907,1770246431100,-1000.0,0.00054794,2]
[404526908,1770246431119,-500.0,0.00054794,120]
[404526909,1770246431138,-500.0,0.00054794,120]
[404526910,1770246431160,-200.0,0.00054794,120]
[404526911,1770246431180,-500.0,0.00054794,120]
[404526912,1770246431200,-500.0,0.00054794,120]
[404526913,1770246431219,-500.0,0.00054794,120]
[404526914,1770246431238,-500.0,0.00054794,120]
[404526915,1770246431256,-500.0,0.00054794,120]
[404526916,1770246431275,-550.0,0.00054794,30]
[404526917,1770246431296,-4450.37,0.00054794,120]
[404526918,1770246431316,-500.0,0.00054794,55]
[404526919,1770246431338,-210.61181636,0.00054794,120]
[404526920,1770246431358,-1000.0,0.00054794,120]
[404526921,1770246431378,-500.0,0.00054794,120]
[404526922,1770246431397,-500.0,0.00054794,2]
[404526923,1770246431417,-150.0,0.00054794,120]
[404526924,1770246431436,-200.06576238,0.00054794,120]
[404526925,1770246431456,-500.0,0.00054794,120]
[404526926,1770246431480,-500.0,0.00054794,31]
[404526927,1770246431501,-500.0,0.00054794,30]
[404526928,1770246431522,-500.0,0.00054794,120]
[404526929,1770246431543,-904.53,0.00054794,120]
[404526930,1770246431563,-613.03,0.00054794,120]
[404526931,1770246431583,-500.0,0.00054794,120]
[404526932,1770246431610,-822.8,0.00054794,120]
[404526933,1770246431631,-2445.14,0.00054794,120]
[404526934,1770246431650,-500.0,0.00054794,120]
[404526935,1770246431671,-577.1075293,0.00054794,120]
[404526936,1770246431693,-500.0,0.00054794,7]
[404526937,1770246431715,-500.0,0.00054794,2]
[404526938,1770246431734,-500.0,0.00054794,120]
[404526939,1770246431754,-500.0,0.00054794,120]
[404526940,1770246431775,-500.0,0.00054794,120]
[404526941,1770246431795,-512.58,0.00054794,120]
[404526942,1770246431816,-531.77,0.00054794,120]
[404526943,1770246431839,-191.04758118,0.00054794,120]
[404526944,1770246431859,-500.0,0.00054794,120]
[404526945,1770246431879,-670.05,0.00054794,120]
[404526946,1770246431899,-500.0,0.00054794,120]
[404526947,1770246431919,-500.0,0.00054794,120]
[404526948,1770246431939,-500.0,0.00054794,120]
[404526949,1770246431958,-500.0,0.00054794,120]
[404526950,1770246431980,-500.0,0.00054794,120]
[404526951,1770246432000,-500.0,0.00054794,120]
[404526952,1770246432020,-313.13598433,0.00054794,120]
[404526953,1770246432043,-516.08268312,0.00054794,120]
[404526954,1770246432063,-500.0,0.00054794,120]
[404526955,1770246432083,-765.33,0.00054794,120]
[404526956,1770246432106,-258.21669221,0.00054794,120]
[404526957,1770246432127,-500.0,0.00054794,120]
[404526958,1770246432147,-241.41906398,0.00054794,120]
[404526959,1770246432168,-500.0,0.00054794,120]
[404526960,1770246432188,-888.2,0.00054794,120]
[404526961,1770246432209,-751.35,0.00054794,120]
[404526962,1770246432230,-500.0,0.00054794,120]
[404526963,1770246432250,-1814.52,0.00054794,21]
[404526964,1770246432270,-634.3,0.00054794,120]
[404526965,1770246432290,-575.44,0.00054794,120]
[404526966,1770246432417,-1754.36,0.00054794,120]
[404526967,1770246432438,-500.0,0.00054794,120]
[404526968,1770246432457,-837.4,0.00054794,120]
[404526969,1770246432479,-500.0,0.00054794,120]
[404526970,1770246432501,-999.0,0.00054794,120]
[404526971,1770246432522,-596.38065161,0.00054794,120]
[404526972,1770246432544,-500.0,0.00054794,120]
[404526973,1770246432566,-814.91,0.00054794,120]
[404526974,1770246432592,-1162.01,0.00054794,120]
[404526975,1770246432615,-3783.92,0.00054794,90]
[404526976,1770246432639,-500.0,0.00054794,120]
[404526977,1770246432661,-507.63165998,0.00054794,120]
[404526978,1770246432683,-500.0,0.00054794,120]
[404526979,1770246432703,-709.71,0.00054794,120]
[404526980,1770246432724,-872.57,0.00054794,120]
[404526981,1770246432744,-524.28,0.00054794,120]
[404526982,1770246432763,-3636.30645217,0.00054794,2]
[404526983,1770246434096,-2549.68354783,0.00054794,2]
[404526984,1770246434116,-500.0,0.00054794,120]
[404526985,1770246434137,-500.0,0.00054794,120]
[404526986,1770246434156,-501.42892506,0.00054794,120]
[404526987,1770246434176,-500.0,0.00054794,120]
[404526988,1770246434196,-500.0,0.00054794,120]
[404526989,1770246434216,-500.0,0.00054794,120]
[404526990,1770246434236,-2261.9,0.00054794,10]
[404526991,1770246434254,-500.0,0.00054794,120]
[404526992,1770246434272,-500.0,0.00054794,120]
[404526993,1770246434291,-100000.0,0.0005499,2]
[404526994,1770246434308,-5000.0,0.00055,2]
[404526995,1770246434327,-156.36,0.00055,30]
[404526996,1770246434348,-605.88286008,0.00055,2]
[404526997,1770246434367,-727222.20886903,0.0005506,2]
[404526999,1770246549144,-33505.3305312,0.00035125,2]
[404527000,1770246549165,-741.08018794,0.00039377,2]
[404527001,1770246549187,-3185.83,0.00039438,10]
[404527002,1770246549209,-2654.85,0.00039438,10]
[404527003,1770246549234,-450.4122552,0.00039447,15]
[404527004,1770246553044,157.7,0.000395,7]
[404527005,1770246598440,6216.85810487,0.00026849,2]
[404527006,1770246599206,6216.85810487,0.00043165,2]
[404527038,1770246632148,-1400.08699331,0.00039448,2]
[404527039,1770246632159,-7148.04712626,0.00039448,2]
[404527054,1770246638115,-33649.17114567,0.00039448,2]
[404527055,1770246638258,-77133.47749793,0.00039448,2]
[404527056,1770246638268,-212.86130882,0.00054694,26]
[404527057,1770246638278,-500.0,0.00054794,120]
[404527058,1770246638289,-500.0,0.00054794,120]
[404527059,1770246638298,-1759.83,0.00054794,2]
[404527060,1770246638308,-491.44619857,0.00054794,120]
[404527061,1770246638317,-1000.0,0.00054794,2]
[404527062,1770246638326,-607.87,0.00054794,120]
[404527063,1770246638335,-1738.92,0.00054794,21]
[404527064,1770246638345,-500.0,0.00054794,120]
[404527065,1770246638354,-500.0,0.00054794,120]
[404527066,1770246638364,-458.06757464,0.00054794,7]
[404527067,1770246638374,-500.0,0.00054794,120]
[404527068,1770246638383,-200.0,0.00054794,120]
[404527069,1770246638393,-3626.26,0.00054794,90]
[404527070,1770246638402,-500.0,0.00054794,120]
[404527071,1770246638412,-500.0,0.00054794,120]
[404527072,1770246638422,-999.0,0.00054794,120]
[404527073,1770246638432,-500.0,0.00054794,120]
[404527074,1770246638441,-1113.6,0.00054794,120]
[404527075,1770246638451,-191.71899804,0.00054794,120]
[404527076,1770246638655,-1489.54100196,0.00054794,120]
[404527077,1770246638667,-780.96,0.00054794,120]
[404527078,1770246638677,-500.0,0.00054794,120]
[404527079,1770246638686,-509.61,0.00054794,120]
[404527080,1770246638696,-680.14,0.00054794,120]
[404527081,1770246638707,-500.0,0.00054794,120]
[404527082,1770246638716,-642.13,0.00054794,120]
[404527083,1770246638725,-500.0,0.00054794,120]
[404527084,1770246638735,-836.21,0.00054794,120]
[404527085,1770246638744,-500.0,0.00054794,120]
[404527086,1770246638754,-500.0,0.00054794,120]
[404527087,1770246638763,-502.44,0.00054794,120]
[404527088,1770246638772,-550.0,0.00054794,30]
[404527089,1770246638784,-500.0,0.00054794,120]
[404527090,1770246638795,-457.68169504,0.00054794,120]
[404527110,1770246646544,-42.31830496,0.00054794,120]
[404527111,1770246646553,-500.0,0.00054794,55]
[404527112,1770246646562,-2212.38,0.0005505,10]
[404527113,1770246646572,-1843.65,0.0005505,10]
[404527114,1770246646581,-1536.37,0.0005505,10]
[404527115,1770246646591,-3025.67352884,0.0005506,2]
[404527116,1770246647570,-17990.724949,0.0005506,2]
[404527117,1770246647584,-128309.48031875,0.0005506,2]
[404527118,1770246647595,-160.04,0.000551,14]
[404527119,1770246647606,-691.31,0.000551,14]
[404527120,1770246647616,-156.36,0.000551,30]
[404527121,1770246647627,-168.91734327,0.00055589,30]
[404527122,1770246647639,-300.0,0.00055616,2]
[404527123,1770246647649,-186.48,0.00055616,2]
[404527124,1770246647660,-500.0,0.00055616,120]
[404527125,1770246647672,-500.0,0.00055616,120]
[404527126,1770246647683,-500.0,0.00055616,120]
[404527127,1770246647694,-4450.37,0.00055616,120]
[404527128,1770246647705,-1000.0,0.00055616,120]
[404527129,1770246647719,-500.0,0.00055616,120]
[404527130,1770246647729,-500.0,0.00055616,2]
[404527131,1770246647741,-151.0,0.00055616,120]
[404527132,1770246647751,-500.0,0.00055616,120]
[404527133,1770246647762,-267.76391369,0.00055616,31]
[404527134,1770246647773,-500.0,0.00055616,30]
[404527135,1770246647785,-500.0,0.00055616,120]
[404527136,1770246647796,-904.53,0.00055616,120]
[404527137,1770246647806,-613.03,0.00055616,120]
[404527138,1770246647817,-500.0,0.00055616,120]
[404527139,1770246647829,-822.8,0.00055616,120]
[404527140,1770246647840,-2445.14,0.00055616,120]
[404527141,1770246647851,-500.0,0.00055616,120]
[404527142,1770246647862,-500.0,0.00055616,2]
[404527143,1770246647872,-500.0,0.00055616,120]
[404527144,1770246647882,-500.0,0.00055616,120]
[404527145,1770246647892,-500.0,0.00055616,120]
[404527146,1770246647902,-502.87980514,0.00055616,120]
[404527147,1770246647911,-500.0,0.00055616,120]
[404527148,1770246647921,-500.0,0.00055616,120]
[404527149,1770246647931,-500.0,0.00055616,120]
[404527150,1770246647941,-500.0,0.00055616,120]
[404527151,1770246647951,-765.33,0.00055616,120]
[404527152,1770246647962,-500.0,0.00055616,120]
[404527153,1770246647972,-512.96159163,0.00055616,120]
[404527154,1770246647983,-888.2,0.00055616,120]
[404527155,1770246647994,-751.35,0.00055616,120]
[404527156,1770246648005,-575.44,0.00055616,120]
[404527157,1770246648017,-837.4,0.00055616,120]
[404527158,1770246648028,-500.0,0.00055616,120]
[404527159,1770246648038,-549.45319576,0.00055616,120]
[404527160,1770246648050,-575.56557134,0.00055616,120]
[404527161,1770246648061,-500.0,0.00055616,120]
[404527162,1770246648073,-6185.99,0.00055616,2]
[404527163,1770246648084,-500.0,0.00055616,120]
[404527164,1770246648094,-2261.9,0.00055616,10]
[404527165,1770246648106,-212.21577699,0.00055616,120]
[404527166,1770246648116,-500.0,0.00055616,120]
[404527167,1770246648128,-500.0,0.00055616,120]
[404527168,1770246648137,-500.0,0.00055616,120]
[404527169,1770246648147,-1759.83,0.00055616,2]
[404527170,1770246648156,-1000.0,0.00055616,2]
[404527171,1770246648166,-607.87,0.00055616,120]
[404527172,1770246648176,-1738.92,0.00055616,21]
[404527173,1770246648185,-500.0,0.00055616,120]
[404527174,1770246648197,-500.0,0.00055616,120]
[404527175,1770246648207,-500.0,0.00055616,120]
[404527176,1770246648218,-200.0,0.00055616,120]
[404527177,1770246648231,-3626.26,0.00055616,90]
[404527178,1770246648242,-500.0,0.00055616,120]
[404527179,1770246648252,-500.0,0.00055616,120]
[404527180,1770246648263,-500.0,0.00055616,120]
[404527181,1770246648273,-1681.26,0.00055616,120]
[404527182,1770246648283,-1113.6,0.00055616,120]
[404527183,1770246648292,-780.96,0.00055616,120]
[404527184,1770246648303,-500.0,0.00055616,120]
[404527185,1770246648313,-509.61,0.00055616,120]
[404527186,1770246648324,-680.14,0.00055616,120]
[404527187,1770246648334,-500.0,0.00055616,120]
[404527188,1770246648345,-642.13,0.00055616,120]
[404527189,1770246648354,-498.17244468,0.00055616,120]
[404527190,1770246648364,-836.21,0.00055616,120]
[404527191,1770246648373,-500.0,0.00055616,120]
[404527192,1770246648383,-500.0,0.00055616,120]
[404527193,1770246648392,-502.44,0.00055616,120]
[404527194,1770246648403,-697.91956347,0.00055616,30]
[404527195,1770246648413,-500.0,0.00055616,120]
[404527196,1770246648424,-500.0,0.00055616,120]
[404527197,1770246648435,-500.0,0.00055616,55]
[404527198,1770246648445,-151.0,0.000561,120]
[404527199,1770246648456,-600.0,0.0005616,120]
[404527200,1770246648467,-200.0,0.00056256,120]
[404527201,1770246648477,-168.91734327,0.00056301,30]
[404527202,1770246648488,-500.0,0.00056327,120]
[404527203,1770246648498,-300.0,0.00056438,2]
[404527204,1770246648508,-500.0,0.00056438,120]
[404527205,1770246648518,-500.0,0.00056438,120]
[404527206,1770246648528,-500.0,0.00056438,120]
[404527207,1770246648538,-4450.37,0.00056438,120]
[404527208,1770246648550,-635.12700927,0.00056438,120]
[404527209,1770246648561,-500.0,0.00056438,120]
[404527210,1770246648571,-500.0,0.00056438,2]
[404527211,1770246648581,-500.0,0.00056438,120]
[404527212,1770246648591,-500.0,0.00056438,30]
[404527213,1770246648602,-500.0,0.00056438,120]
[404527214,1770246648612,-904.53,0.00056438,120]
[404527215,1770246648622,-613.03,0.00056438,120]
[404527216,1770246648632,-500.0,0.00056438,120]
[404527217,1770246648642,-822.8,0.00056438,120]
[404527218,1770246648652,-2445.14,0.00056438,120]
[404527219,1770246648663,-500.0,0.00056438,120]
[404527220,1770246648677,-500.0,0.00056438,2]
[404527221,1770246648687,-520.78576747,0.00056438,120]
[404527222,1770246648697,-500.0,0.00056438,120]
[404527223,1770246648707,-500.0,0.00056438,120]
[404527224,1770246648717,-500.0,0.00056438,120]
[404527225,1770246648727,-500.0,0.00056438,120]
[404527226,1770246648736,-500.0,0.00056438,120]
[404527227,1770246648747,-500.0,0.00056438,120]
[404527228,1770246648757,-765.33,0.00056438,120]
[404527229,1770246648766,-500.0,0.00056438,120]
[404527230,1770246648776,-888.2,0.00056438,120]
[404527231,1770246648786,-751.35,0.00056438,120]
[404527232,1770246648797,-575.44,0.00056438,120]
[404527233,1770246648807,-837.4,0.00056438,120]
[404527234,1770246648817,-500.0,0.00056438,120]
[404527235,1770246648827,-500.0,0.00056438,120]
[404527236,1770246648838,-6185.99,0.00056438,2]
[404527237,1770246648848,-500.0,0.00056438,120]
[404527238,1770246648858,-2261.9,0.00056438,10]
[404527239,1770246648868,-513.6191975,0.00056438,120]
[404527240,1770246648878,-500.0,0.00056438,120]
[404527241,1770246649016,-500.0,0.00056438,120]
[404527242,1770246649026,-1759.83,0.00056438,2]
[404527243,1770246649035,-1000.0,0.00056438,2]
[404527244,1770246649046,-607.87,0.00056438,120]
[404527245,1770246649055,-1738.92,0.00056438,21]
[404527246,1770246649064,-500.0,0.00056438,120]
[404527247,1770246649074,-500.0,0.00056438,120]
[404527248,1770246649083,-500.0,0.00056438,120]
[404527249,1770246649092,-200.0,0.00056438,120]
[404527250,1770246649102,-3626.26,0.00056438,90]
[404527251,1770246649111,-500.0,0.00056438,120]
[404527252,1770246649121,-500.0,0.00056438,120]
[404527253,1770246649130,-500.0,0.00056438,120]
[404527254,1770246649139,-1681.26,0.00056438,120]
[404527255,1770246649149,-1113.6,0.00056438,120]
[404527256,1770246649159,-780.96,0.00056438,120]
[404527257,1770246649168,-500.0,0.00056438,120]
[404527258,1770246649177,-509.61,0.00056438,120]
[404527259,1770246649186,-680.14,0.00056438,120]
[404527260,1770246649196,-500.0,0.00056438,120]
[404527261,1770246649205,-642.13,0.00056438,120]
[404527262,1770246649214,-836.21,0.00056438,120]
[404527263,1770246649223,-500.0,0.00056438,120]
[404527264,1770246649232,-500.0,0.00056438,120]
[404527265,1770246649241,-502.44,0.00056438,120]
[404527266,1770246649250,-500.0,0.00056438,120]
[404527267,1770246649259,-500.0,0.00056438,120]
[404527268,1770246649268,-500.0,0.00056438,55]
[404527269,1770246649277,-160.0,0.00056449,4]
[404527270,1770246649286,-300.0,0.0005726,2]
[404527271,1770246649295,-582.75754789,0.0005726,120]
[404527272,1770246649304,-500.0,0.0005726,120]
[404527273,1770246649313,-500.0,0.0005726,120]
[404527274,1770246649322,-4450.37,0.0005726,120]
[404527275,1770246649331,-527.45443158,0.0005726,120]
[404527276,1770246649339,-557.58597482,0.0005726,2]
[404527277,1770246649348,-500.0,0.0005726,120]
[404527278,1770246649357,-500.0,0.0005726,30]
[404527279,1770246649366,-500.0,0.0005726,120]
[404527280,1770246649375,-904.53,0.0005726,120]
[404527281,1770246649384,-613.03,0.0005726,120]
[404527282,1770246649393,-500.0,0.0005726,120]
[404527283,1770246649402,-822.8,0.0005726,120]
[404527284,1770246649410,-2445.14,0.0005726,120]
[404527285,1770246649420,-500.0,0.0005726,120]
[404527286,1770246649430,-500.0,0.0005726,2]
[404527287,1770246649439,-458.67055965,0.0005726,120]
[404527288,1770246649447,-500.0,0.0005726,120]
[404527289,1770246649456,-500.0,0.0005726,120]
[404527290,1770246649465,-500.0,0.0005726,120]
[404527291,1770246649474,-500.0,0.0005726,120]
[404527292,1770246649483,-500.0,0.0005726,120]
[404527293,1770246649492,-765.33,0.0005726,120]
[404527294,1770246649501,-500.0,0.0005726,120]
[404527295,1770246649509,-888.2,0.0005726,120]
[404527296,1770246649518,-751.35,0.0005726,120]
[404527297,1770246649527,-575.44,0.0005726,120]
[404527298,1770246649536,-837.4,0.0005726,120]
[404527299,1770246649545,-154.72721115,0.0005726,120]
[404527300,1770246649554,-500.0,0.0005726,120]
[404527301,1770246649562,-6185.99,0.0005726,2]
[404527302,1770246649571,-625.09987688,0.0005726,120]
[404527303,1770246649580,-2261.9,0.0005726,10]
[404527304,1770246649589,-500.0,0.0005726,120]
[404527305,1770246649598,-500.0,0.0005726,120]
[404527306,1770246649606,-1759.83,0.0005726,2]
[404527307,1770246649615,-1000.0,0.0005726,2]
[404527308,1770246649624,-607.87,0.0005726,120]
[404527309,1770246649633,-1738.92,0.0005726,21]
[404527310,1770246649644,-500.0,0.0005726,120]
[404527311,1770246649653,-500.0,0.0005726,120]
[404527312,1770246649664,-500.0,0.0005726,120]
[404527313,1770246649678,-200.0,0.0005726,120]
[404527314,1770246649688,-3626.26,0.0005726,90]
[404527315,1770246649698,-500.0,0.0005726,120]
[404527316,1770246649707,-254.52108839,0.0005726,120]
[404527317,1770246649717,-500.0,0.0005726,120]
[404527318,1770246649727,-1681.26,0.0005726,120]
[404527319,1770246649738,-1113.6,0.0005726,120]
[404527320,1770246649751,-780.96,0.0005726,120]
[404527321,1770246649761,-500.0,0.0005726,120]
[404527322,1770246649771,-509.61,0.0005726,120]
[404527323,1770246649782,-680.14,0.0005726,120]
[404527324,1770246649791,-500.0,0.0005726,120]
[404527325,1770246649800,-642.13,0.0005726,120]
[404527326,1770246649809,-836.21,0.0005726,120]
[404527327,1770246649818,-500.0,0.0005726,120]
[404527328,1770246649827,-537.28536281,0.0005726,120]
[404527329,1770246649836,-502.44,0.0005726,120]
[404527330,1770246649845,-500.0,0.0005726,120]
[404527331,1770246649854,-500.0,0.0005726,120]
[404527332,1770246649863,-500.0,0.0005726,55]
[404527333,1770246649873,-151.0,0.000574,120]
[404527334,1770246649883,-300.0,0.00057534,2]
[404527335,1770246649893,-691.31,0.000576,14]
[404527336,1770246649902,-219.10371731,0.00058,90]
[404527337,1770246649912,-209.64860752,0.00058,120]
[404527338,1770246649921,-300.0,0.00058082,2]
[404527339,1770246649930,-456.36542591,0.00058082,120]
[404527340,1770246649940,-500.0,0.00058082,120]
[404527341,1770246649950,-4450.37,0.00058082,120]
[404527342,1770246649959,-500.0,0.00058082,120]
[404527343,1770246649968,-500.0,0.00058082,30]
[404527344,1770246649978,-500.0,0.00058082,120]
[404527345,1770246649987,-904.53,0.00058082,120]
[404527346,1770246649996,-613.03,0.00058082,120]
[404527347,1770246650005,-500.0,0.00058082,120]
[404527348,1770246650014,-822.8,0.00058082,120]
[404527349,1770246650024,-2445.14,0.00058082,120]
[404527350,1770246650034,-500.0,0.00058082,120]
[404527351,1770246650043,-450.0,0.00058082,2]
[404527352,1770246650052,-500.0,0.00058082,120]
[404527353,1770246650061,-500.0,0.00058082,120]
[404527354,1770246650070,-500.0,0.00058082,120]
[404527355,1770246650080,-500.0,0.00058082,120]
[404527356,1770246650090,-500.0,0.00058082,120]
[404527357,1770246650100,-765.33,0.00058082,120]
[404527358,1770246650109,-500.0,0.00058082,120]
[404527359,1770246650118,-888.2,0.00058082,120]
[404527360,1770246650127,-751.35,0.00058082,120]
[404527361,1770246650136,-575.44,0.00058082,120]
[404527362,1770246650147,-837.4,0.00058082,120]
[404527363,1770246650158,-283.06131292,0.00058082,120]
[404527364,1770246650167,-6185.99,0.00058082,2]
[404527365,1770246650176,-2261.9,0.00058082,10]
[404527366,1770246650186,-500.0,0.00058082,120]
[404527367,1770246650196,-500.0,0.00058082,120]
[404527368,1770246650205,-1759.83,0.00058082,2]